[Event "*** Titled Tuesday Blitz"]
[Site "Chess.com"]
[Date "2020.11.24"]
[Round "2"]
[White "Artooooo"]
[Black "Andrii_Prydun"]
[Result "1-0"]
[WhiteElo "2747"]
[BlackElo "2345"]
[TimeControl "180+1"]
[EndTime "10:34:00 PST"]
[Termination "Artooooo won by resignation"]

1. Nf3 {[%clk 0:03:00.9]} 1... d5 {[%clk 0:03:00.3]} 2. d3 {[%clk 0:03:01.8]}
2... Nf6 {[%clk 0:03:00]} 3. Nbd2 {[%clk 0:03:02.7]} 3... g6 {[%clk 0:02:58.1]}
4. g3 {[%clk 0:03:03.6]} 4... Bg7 {[%clk 0:02:57.6]} 5. Bg2 {[%clk 0:03:04.5]}
5... O-O {[%clk 0:02:58]} 6. O-O {[%clk 0:03:05.4]} 6... c5 {[%clk 0:02:57.6]}
7. e4 {[%clk 0:03:06.3]} 7... Nc6 {[%clk 0:02:57.5]} 8. Re1 {[%clk 0:03:06.3]}
8... e5 {[%clk 0:02:56.8]} 9. exd5 {[%clk 0:03:06.4]} 9... Nxd5 {[%clk
0:02:56.2]} 10. Nc4 {[%clk 0:03:07.3]} 10... Re8 {[%clk 0:02:54]} 11. a4 {[%clk
0:03:07.9]} 11... f6 {[%clk 0:02:43.9]} 12. c3 {[%clk 0:03:07.4]} 12... Be6
{[%clk 0:02:43.6]} 13. Nfd2 {[%clk 0:03:07.6]} 13... Qd7 {[%clk 0:02:41.6]} 14.
Ne4 {[%clk 0:03:08]} 14... b6 {[%clk 0:02:39]} 15. Qb3 {[%clk 0:02:59.3]} 15...
Nc7 {[%clk 0:02:33.6]} 16. Qc2 {[%clk 0:02:50.6]} 16... Rad8 {[%clk 0:02:24.4]}
17. Bf1 {[%clk 0:02:40.8]} 17... Bh3 {[%clk 0:02:21]} 18. Ncd6 {[%clk
0:02:17.6]} 18... Re7 {[%clk 0:02:14.1]} 19. Bxh3 {[%clk 0:01:50.3]} 19... Qxh3
{[%clk 0:02:15]} 20. Qb3+ {[%clk 0:01:51]} 20... Qe6 {[%clk 0:01:58]} 21. Qxe6+
{[%clk 0:01:49.3]} 21... Rxe6 {[%clk 0:01:57.5]} 22. Nb5 {[%clk 0:01:49.8]}
22... Ne8 {[%clk 0:01:39.4]} 23. Rd1 {[%clk 0:01:40.9]} 23... c4 {[%clk
0:01:35.4]} 24. f3 {[%clk 0:01:28.9]} 24... cxd3 {[%clk 0:01:32]} 25. Nf2 {[%clk
0:01:28.4]} 25... a6 {[%clk 0:01:27.4]} 26. Na3 {[%clk 0:01:28.3]} 26... e4
{[%clk 0:00:47.2]} 27. fxe4 {[%clk 0:01:22.6]} 27... Ne5 {[%clk 0:00:47.3]} 28.
Bf4 {[%clk 0:01:22.5]} 28... d2 {[%clk 0:00:38.6]} 29. Kg2 {[%clk 0:01:22.9]}
29... Red6 {[%clk 0:00:27.2]} 30. Bxe5 {[%clk 0:01:22.2]} 30... fxe5 {[%clk
0:00:28.1]} 31. Nc4 {[%clk 0:01:22.8]} 31... R6d7 {[%clk 0:00:27.4]} 32. Nxb6
{[%clk 0:01:22.9]} 32... Rb7 {[%clk 0:00:27.3]} 33. a5 {[%clk 0:01:16.6]} 33...
Bh6 {[%clk 0:00:26.4]} 34. Ng4 {[%clk 0:01:12.3]} 34... Bg5 {[%clk 0:00:24]} 35.
h4 {[%clk 0:01:12.5]} 35... Nf6 {[%clk 0:00:23.6]} 36. Nxf6+ {[%clk 0:01:03.1]}
36... Bxf6 {[%clk 0:00:23.1]} 37. Nd5 {[%clk 0:01:03.3]} 37... Bg7 {[%clk
0:00:18.8]} 38. Rxd2 {[%clk 0:01:02.6]} 38... Rc8 {[%clk 0:00:18.5]} 39. b4
{[%clk 0:01:00.3]} 39... Rf7 {[%clk 0:00:16.9]} 40. Rf1 {[%clk 0:00:58.9]} 40...
Rb7 {[%clk 0:00:15.1]} 41. g4 {[%clk 0:00:57.5]} 41... g5 {[%clk 0:00:13.5]} 42.
hxg5 {[%clk 0:00:57.3]} 42... Rc6 {[%clk 0:00:12.9]} 43. Rf6 {[%clk 0:00:54.7]}
43... Bxf6 {[%clk 0:00:12]} 44. gxf6 {[%clk 0:00:54.4]} 44... Kf7 {[%clk
0:00:11.6]} 45. Kg3 {[%clk 0:00:51.6]} 45... Rd7 {[%clk 0:00:10.4]} 46. Kh4
{[%clk 0:00:49]} 46... Rxc3 {[%clk 0:00:10]} 47. Kg5 {[%clk 0:00:44.7]} 47...
Rf3 {[%clk 0:00:08.5]} 48. Rh2 {[%clk 0:00:43.5]} 48... Ke6 {[%clk 0:00:07.5]}
49. Rc2 {[%clk 0:00:36.6]} 49... Rd6 {[%clk 0:00:03]} 50. Rc7 {[%clk 0:00:35.5]}
50... Rxd5 {[%clk 0:00:02.2]} 51. exd5+ {[%clk 0:00:29.3]} 51... Kxd5 {[%clk
0:00:02.5]} 52. Rxh7 {[%clk 0:00:29.6]} 52... Kc4 {[%clk 0:00:02.2]} 53. Re7
{[%clk 0:00:29]} 53... Kxb4 {[%clk 0:00:02.1]} 54. Rxe5 {[%clk 0:00:28.5]} 1-0

[Event "*** Titled Tuesday Blitz"]
[Site "Chess.com"]
[Date "2020.11.24"]
[Round "2"]
[White "lacafi"]
[Black "Triumphmate"]
[Result "1-0"]
[WhiteElo "2214"]
[BlackElo "2425"]
[TimeControl "180+1"]
[EndTime "10:34:00 PST"]
[Termination "lacafi won by checkmate"]

1. d4 {[%clk 0:03:00.9]} 1... d5 {[%clk 0:02:59.8]} 2. Nf3 {[%clk 0:03:01]} 2...
e6 {[%clk 0:02:59.6]} 3. e3 {[%clk 0:03:01.4]} 3... f5 {[%clk 0:02:59.1]} 4. Be2
{[%clk 0:03:01.2]} 4... Nf6 {[%clk 0:02:59.6]} 5. O-O {[%clk 0:03:01.7]} 5...
Bd6 {[%clk 0:03:00]} 6. b3 {[%clk 0:03:02.4]} 6... O-O {[%clk 0:03:00.3]} 7. Bb2
{[%clk 0:03:03.1]} 7... c6 {[%clk 0:03:00.6]} 8. c4 {[%clk 0:03:03.6]} 8... Nbd7
{[%clk 0:03:00.9]} 9. Ne5 {[%clk 0:03:03.9]} 9... Ne4 {[%clk 0:03:00.3]} 10. f3
{[%clk 0:03:03.8]} 10... Nef6 {[%clk 0:02:59.8]} 11. Nd2 {[%clk 0:03:03.8]}
11... Qc7 {[%clk 0:02:57.5]} 12. f4 {[%clk 0:02:58.7]} 12... Ne4 {[%clk
0:02:57.7]} 13. Nxe4 {[%clk 0:02:58.3]} 13... fxe4 {[%clk 0:02:57.7]} 14. Rc1
{[%clk 0:02:58.8]} 14... Nf6 {[%clk 0:02:55.7]} 15. a3 {[%clk 0:02:53.1]} 15...
Bd7 {[%clk 0:02:55.2]} 16. b4 {[%clk 0:02:53.4]} 16... Qd8 {[%clk 0:02:49.9]}
17. Qb3 {[%clk 0:02:47.3]} 17... a6 {[%clk 0:02:43.4]} 18. a4 {[%clk 0:02:46.2]}
18... Qe7 {[%clk 0:02:38.2]} 19. c5 {[%clk 0:02:42.7]} 19... Bc7 {[%clk
0:02:36.6]} 20. b5 {[%clk 0:02:42.6]} 20... axb5 {[%clk 0:02:30.3]} 21. axb5
{[%clk 0:02:43.5]} 21... Qe8 {[%clk 0:02:21.9]} 22. Ra1 {[%clk 0:02:04.3]} 22...
Qe7 {[%clk 0:02:11.2]} 23. b6 {[%clk 0:01:55.3]} 23... Rxa1 {[%clk 0:02:07.3]}
24. Rxa1 {[%clk 0:01:56.2]} 24... Bb8 {[%clk 0:02:07.6]} 25. Ra8 {[%clk
0:01:46.3]} 25... Bxe5 {[%clk 0:01:39.6]} 26. Rxf8+ {[%clk 0:01:47.2]} 26...
Qxf8 {[%clk 0:01:39.8]} 27. fxe5 {[%clk 0:01:48.1]} 27... Ne8 {[%clk 0:01:39]}
28. Qa4 {[%clk 0:01:38.7]} 28... Qe7 {[%clk 0:01:08.1]} 29. Qa8 {[%clk
0:01:37.9]} 29... Qh4 {[%clk 0:01:05.3]} 30. Bc3 {[%clk 0:01:29.2]} 30... Qg5
{[%clk 0:01:03.4]} 31. Bd2 {[%clk 0:01:25.1]} 31... h6 {[%clk 0:00:35.1]} 32.
Qxb7 {[%clk 0:01:24.2]} 32... Qd8 {[%clk 0:00:35.6]} 33. Bh5 {[%clk 0:00:41.5]}
33... Kh7 {[%clk 0:00:30.8]} 34. Bxe8 {[%clk 0:00:34.6]} 34... Qxe8 {[%clk
0:00:30.8]} 35. h3 {[%clk 0:00:33]} 35... Bc8 {[%clk 0:00:20.4]} 36. Qc7 {[%clk
0:00:31.8]} 36... Ba6 {[%clk 0:00:20.8]} 37. b7 {[%clk 0:00:29.9]} 37... Bxb7
{[%clk 0:00:21.2]} 38. Qxb7 {[%clk 0:00:30]} 38... Qh5 {[%clk 0:00:22.1]} 39.
Qb1 {[%clk 0:00:24.9]} 39... Qe2 {[%clk 0:00:22]} 40. Qe1 {[%clk 0:00:25]} 40...
Qd3 {[%clk 0:00:22.5]} 41. Bc1 {[%clk 0:00:23.7]} 41... Qc2 {[%clk 0:00:22.2]}
42. Qd2 {[%clk 0:00:23.7]} 42... Qb3 {[%clk 0:00:22.7]} 43. Kh2 {[%clk
0:00:23.1]} 43... h5 {[%clk 0:00:23]} 44. Kg3 {[%clk 0:00:22.8]} 44... g6 {[%clk
0:00:23.3]} 45. Kf2 {[%clk 0:00:20.1]} 45... Qc4 {[%clk 0:00:22.9]} 46. Bb2
{[%clk 0:00:17.3]} 46... Qb3 {[%clk 0:00:22.6]} 47. Bc3 {[%clk 0:00:17.1]} 47...
Qc4 {[%clk 0:00:22.6]} 48. Ba5 {[%clk 0:00:16.9]} 48... Qa2 {[%clk 0:00:22.2]}
49. Qxa2 {[%clk 0:00:16.1]} 49... Kh6 {[%clk 0:00:22]} 50. Qb3 {[%clk
0:00:15.6]} 50... h4 {[%clk 0:00:22.9]} 51. Qb6 {[%clk 0:00:15.5]} 51... Kg5
{[%clk 0:00:23.4]} 52. Qxc6 {[%clk 0:00:15.7]} 52... Kf5 {[%clk 0:00:24.3]} 53.
Qd6 {[%clk 0:00:15.6]} 53... g5 {[%clk 0:00:24.2]} 54. c6 {[%clk 0:00:15.5]}
54... g4 {[%clk 0:00:24.4]} 55. hxg4+ {[%clk 0:00:16]} 55... Kg5 {[%clk
0:00:24.7]} 56. c7 {[%clk 0:00:16.1]} 56... h3 {[%clk 0:00:25.6]} 57. gxh3
{[%clk 0:00:15.6]} 57... Kh4 {[%clk 0:00:25.2]} 58. c8=Q {[%clk 0:00:15.6]}
58... Kg5 {[%clk 0:00:25.6]} 59. Qg8+ {[%clk 0:00:14.8]} 59... Kh4 {[%clk
0:00:26.5]} 60. Qh7+ {[%clk 0:00:14.2]} 60... Kg5 {[%clk 0:00:26.3]} 61. Qh5#
{[%clk 0:00:14.3]} 1-0

[Event "*** Titled Tuesday Blitz"]
[Site "Chess.com"]
[Date "2020.11.24"]
[Round "2"]
[White "kanzaww"]
[Black "Witik"]
[Result "0-1"]
[WhiteElo "2470"]
[BlackElo "2704"]
[TimeControl "180+1"]
[EndTime "10:34:01 PST"]
[Termination "Witik won on time"]

1. e4 {[%clk 0:03:00.9]} 1... c6 {[%clk 0:02:57.2]} 2. d4 {[%clk 0:02:59.3]}
2... d5 {[%clk 0:02:56.6]} 3. Nd2 {[%clk 0:02:58.4]} 3... dxe4 {[%clk
0:02:56.5]} 4. Nxe4 {[%clk 0:02:59.3]} 4... Nf6 {[%clk 0:02:57.3]} 5. Nxf6+
{[%clk 0:02:58.2]} 5... exf6 {[%clk 0:02:58.2]} 6. c3 {[%clk 0:02:57.7]} 6...
Bd6 {[%clk 0:02:58.7]} 7. Bd3 {[%clk 0:02:57.1]} 7... O-O {[%clk 0:02:59.4]} 8.
Qc2 {[%clk 0:02:55.5]} 8... Re8+ {[%clk 0:03:00]} 9. Ne2 {[%clk 0:02:55.7]} 9...
h5 {[%clk 0:03:00.9]} 10. Be3 {[%clk 0:02:50.4]} 10... Nd7 {[%clk 0:03:00.3]}
11. O-O-O {[%clk 0:02:49.6]} 11... Nf8 {[%clk 0:03:00.3]} 12. Ng3 {[%clk
0:02:25.9]} 12... g6 {[%clk 0:02:55.7]} 13. Ne4 {[%clk 0:02:18.4]} 13... Be7
{[%clk 0:02:55]} 14. h4 {[%clk 0:01:59.1]} 14... Be6 {[%clk 0:02:50.7]} 15. Kb1
{[%clk 0:01:55.5]} 15... a5 {[%clk 0:02:36.6]} 16. c4 {[%clk 0:01:43.9]} 16...
a4 {[%clk 0:01:51.8]} 17. Nc3 {[%clk 0:01:36.9]} 17... a3 {[%clk 0:01:45.3]} 18.
b3 {[%clk 0:01:37.1]} 18... Qa5 {[%clk 0:01:42.4]} 19. f3 {[%clk 0:01:17.4]}
19... f5 {[%clk 0:01:41.4]} 20. Bh6 {[%clk 0:00:57]} 20... Bf6 {[%clk
0:01:38.2]} 21. Ne2 {[%clk 0:00:53.6]} 21... b5 {[%clk 0:01:32.3]} 22. cxb5
{[%clk 0:00:46.5]} 22... cxb5 {[%clk 0:01:31.7]} 23. Qd2 {[%clk 0:00:47.1]}
23... Qb6 {[%clk 0:01:25.6]} 24. Bg5 {[%clk 0:00:42.9]} 24... Bh8 {[%clk
0:01:21.1]} 25. Be3 {[%clk 0:00:40.2]} 25... Red8 {[%clk 0:00:45.1]} 26. Qb4
{[%clk 0:00:26.5]} 26... Bd5 {[%clk 0:00:42.1]} 27. Nf4 {[%clk 0:00:18.9]} 27...
Ne6 {[%clk 0:00:41.8]} 28. Nxe6 {[%clk 0:00:17.8]} 28... Bxe6 {[%clk 0:00:40.1]}
29. Bc2 {[%clk 0:00:11.7]} 29... Rac8 {[%clk 0:00:37.6]} 30. Rhe1 {[%clk
0:00:11.1]} 30... Bd5 {[%clk 0:00:35.7]} 31. Bg5 {[%clk 0:00:09]} 31... Re8
{[%clk 0:00:35.1]} 32. Re7 {[%clk 0:00:07.9]} 32... Bg7 {[%clk 0:00:29.3]} 33.
Rde1 {[%clk 0:00:06.5]} 33... Rxe7 {[%clk 0:00:28]} 34. Rxe7 {[%clk 0:00:05]}
34... Bxd4 {[%clk 0:00:25.1]} 35. Rd7 {[%clk 0:00:04.7]} 35... Bc3 {[%clk
0:00:19.9]} 36. Qe7 {[%clk 0:00:02.3]} 36... Be6 {[%clk 0:00:16.9]} 37. Rd8+
{[%clk 0:00:01.5]} 37... Rxd8 {[%clk 0:00:16.8]} 38. Qxd8+ {[%clk 0:00:02.4]}
38... Qxd8 {[%clk 0:00:17.7]} 39. Bxd8 {[%clk 0:00:03.3]} 39... b4 {[%clk
0:00:16.5]} 40. Bd3 {[%clk 0:00:03.7]} 40... Bd5 {[%clk 0:00:16.4]} 41. Be7
{[%clk 0:00:03.9]} 41... f6 {[%clk 0:00:16.1]} 42. Kc2 {[%clk 0:00:04.2]} 42...
Kf7 {[%clk 0:00:16.2]} 43. Bc5 {[%clk 0:00:04.6]} 43... Be6 {[%clk 0:00:15.6]}
44. Bb5 {[%clk 0:00:04.9]} 44... g5 {[%clk 0:00:15.7]} 45. Kd3 {[%clk
0:00:05.3]} 45... Bxb3 {[%clk 0:00:10.3]} 46. axb3 {[%clk 0:00:01.2]} 46... a2
{[%clk 0:00:10.3]} 0-1

[Event "*** Titled Tuesday Blitz"]
[Site "Chess.com"]
[Date "2020.11.24"]
[Round "2"]
[White "Bathory44"]
[Black "VerdeNotte"]
[Result "1/2-1/2"]
[WhiteElo "2563"]
[BlackElo "2907"]
[TimeControl "180+1"]
[EndTime "10:34:02 PST"]
[Termination "Game drawn by stalemate"]

1. e4 {[%clk 0:03:00.9]} 1... c5 {[%clk 0:02:57.2]} 2. c3 {[%clk 0:03:00.6]}
2... d5 {[%clk 0:02:57]} 3. exd5 {[%clk 0:03:00.9]} 3... Qxd5 {[%clk 0:02:57.9]}
4. d4 {[%clk 0:03:01.3]} 4... Nc6 {[%clk 0:02:58.5]} 5. Nf3 {[%clk 0:03:01.8]}
5... Bf5 {[%clk 0:02:58.8]} 6. Be2 {[%clk 0:03:01.7]} 6... cxd4 {[%clk
0:02:54.1]} 7. cxd4 {[%clk 0:03:01.5]} 7... Bxb1 {[%clk 0:02:54.2]} 8. Rxb1
{[%clk 0:03:02.4]} 8... e6 {[%clk 0:02:54.6]} 9. O-O {[%clk 0:03:00.6]} 9... Nf6
{[%clk 0:02:54.4]} 10. b4 {[%clk 0:03:00.8]} 10... Bd6 {[%clk 0:02:52.9]} 11. b5
{[%clk 0:02:59.7]} 11... Ne7 {[%clk 0:02:53.1]} 12. Ne5 {[%clk 0:02:55.5]} 12...
Nf5 {[%clk 0:02:30]} 13. Bb2 {[%clk 0:02:05]} 13... Bxe5 {[%clk 0:02:29.1]} 14.
dxe5 {[%clk 0:02:04.7]} 14... Qxd1 {[%clk 0:02:28.9]} 15. Rfxd1 {[%clk
0:02:03.7]} 15... Nd5 {[%clk 0:02:28.5]} 16. Bf3 {[%clk 0:01:59.1]} 16... O-O-O
{[%clk 0:02:25.5]} 17. Ba3 {[%clk 0:01:40.5]} 17... h5 {[%clk 0:02:04.6]} 18.
Rd3 {[%clk 0:01:33.5]} 18... Nf4 {[%clk 0:01:54.5]} 19. Rc1+ {[%clk 0:01:23.2]}
19... Kb8 {[%clk 0:01:54]} 20. Rdc3 {[%clk 0:01:12.6]} 20... Nd4 {[%clk
0:01:38.9]} 21. Bd6+ {[%clk 0:01:06]} 21... Rxd6 {[%clk 0:01:35.1]} 22. exd6
{[%clk 0:01:05.8]} 22... Nxf3+ {[%clk 0:01:21.6]} 23. gxf3 {[%clk 0:01:00.5]}
23... Ne2+ {[%clk 0:01:20.8]} 24. Kg2 {[%clk 0:01:01]} 24... Nxc1 {[%clk
0:01:15.7]} 25. Rxc1 {[%clk 0:00:59.8]} 25... Rd8 {[%clk 0:01:06.3]} 26. Rc7
{[%clk 0:00:57.1]} 26... Rxd6 {[%clk 0:00:58.6]} 27. Rxf7 {[%clk 0:00:57.1]}
27... Rd5 {[%clk 0:00:51.2]} 28. a4 {[%clk 0:00:56.5]} 28... Rg5+ {[%clk
0:00:43.3]} 29. Kh3 {[%clk 0:00:55.7]} 29... g6 {[%clk 0:00:37.4]} 30. f4 {[%clk
0:00:53.4]} 30... Rg1 {[%clk 0:00:28.7]} 31. Re7 {[%clk 0:00:51.6]} 31... Ra1
{[%clk 0:00:24.2]} 32. Rxe6 {[%clk 0:00:50.9]} 32... Rxa4 {[%clk 0:00:24.2]} 33.
Rxg6 {[%clk 0:00:46.1]} 33... Rxf4 {[%clk 0:00:24.2]} 34. Kg3 {[%clk 0:00:46.4]}
34... Rf5 {[%clk 0:00:22.8]} 35. b6 {[%clk 0:00:45.5]} 35... axb6 {[%clk
0:00:22.3]} 36. Rxb6 {[%clk 0:00:45.5]} 36... Kc7 {[%clk 0:00:22.7]} 37. Rb1
{[%clk 0:00:41.7]} 37... b5 {[%clk 0:00:22.4]} 38. f4 {[%clk 0:00:41.8]} 38...
Kd6 {[%clk 0:00:14.9]} 39. Kf3 {[%clk 0:00:41.2]} 39... Rc5 {[%clk 0:00:15.2]}
40. Ke4 {[%clk 0:00:38]} 40... Ke6 {[%clk 0:00:15.5]} 41. Rb4 {[%clk 0:00:24.8]}
41... h4 {[%clk 0:00:09.1]} 42. h3 {[%clk 0:00:24.9]} 42... Rc4+ {[%clk
0:00:05.7]} 43. Rxc4 {[%clk 0:00:24.8]} 43... bxc4 {[%clk 0:00:06.6]} 44. Kd4
{[%clk 0:00:22.8]} 44... Kf5 {[%clk 0:00:07.1]} 45. Kxc4 {[%clk 0:00:23.2]}
45... Kxf4 {[%clk 0:00:08]} 46. Kd3 {[%clk 0:00:23.8]} 46... Kf3 {[%clk
0:00:08]} 47. Kd2 {[%clk 0:00:23.7]} 47... Kf2 {[%clk 0:00:08.3]} 48. Kd1 {[%clk
0:00:24]} 48... Kf1 {[%clk 0:00:06.3]} 49. Kd2 {[%clk 0:00:24]} 49... Kf2 {[%clk
0:00:06.9]} 50. Kd1 {[%clk 0:00:24.2]} 50... Kg3 {[%clk 0:00:06.8]} 51. Ke2
{[%clk 0:00:24.4]} 51... Kg2 {[%clk 0:00:07]} 52. Ke1 {[%clk 0:00:24.5]} 52...
Kg1 {[%clk 0:00:07.4]} 53. Ke2 {[%clk 0:00:24.8]} 53... Kg2 {[%clk 0:00:08.3]}
54. Ke1 {[%clk 0:00:25.1]} 54... Kxh3 {[%clk 0:00:06.6]} 55. Kf2 {[%clk
0:00:24.6]} 55... Kh2 {[%clk 0:00:07.5]} 56. Kf1 {[%clk 0:00:24.9]} 56... Kh1
{[%clk 0:00:07.7]} 57. Kf2 {[%clk 0:00:25.1]} 57... h3 {[%clk 0:00:08.6]} 58.
Kf1 {[%clk 0:00:25.4]} 58... h2 {[%clk 0:00:09.1]} 59. Kf2 {[%clk 0:00:25.5]}
1/2-1/2

[Event "*** Titled Tuesday Blitz"]
[Site "Chess.com"]
[Date "2020.11.24"]
[Round "2"]
[White "Pelopidass"]
[Black "Ze-Pequeno"]
[Result "0-1"]
[WhiteElo "2585"]
[BlackElo "2259"]
[TimeControl "180+1"]
[EndTime "10:34:04 PST"]
[Termination "Ze-Pequeno won by checkmate"]

1. e4 {[%clk 0:03:00.9]} 1... c5 {[%clk 0:02:55.7]} 2. Nf3 {[%clk 0:03:00.1]}
2... d6 {[%clk 0:02:56]} 3. b3 {[%clk 0:03:00.4]} 3... Nc6 {[%clk 0:02:53.8]} 4.
Bb2 {[%clk 0:02:59.6]} 4... e5 {[%clk 0:02:54.3]} 5. Bc4 {[%clk 0:02:49.8]} 5...
g6 {[%clk 0:02:52]} 6. O-O {[%clk 0:02:49.2]} 6... Bg7 {[%clk 0:02:51.8]} 7. Nc3
{[%clk 0:02:42.3]} 7... h6 {[%clk 0:02:49.9]} 8. Nd5 {[%clk 0:02:41.4]} 8...
Nge7 {[%clk 0:02:49.1]} 9. c3 {[%clk 0:02:35.8]} 9... O-O {[%clk 0:02:48.1]} 10.
d4 {[%clk 0:02:33.9]} 10... exd4 {[%clk 0:02:47.3]} 11. cxd4 {[%clk 0:02:33.8]}
11... Nxd5 {[%clk 0:02:47.5]} 12. Bxd5 {[%clk 0:02:29]} 12... Bg4 {[%clk
0:02:45]} 13. Bxc6 {[%clk 0:02:23.5]} 13... bxc6 {[%clk 0:02:43.6]} 14. e5
{[%clk 0:02:11.4]} 14... cxd4 {[%clk 0:02:27.9]} 15. exd6 {[%clk 0:02:01.3]}
15... Qxd6 {[%clk 0:02:21.6]} 16. h3 {[%clk 0:02:01.1]} 16... Bxf3 {[%clk
0:02:20.6]} 17. Qxf3 {[%clk 0:02:02]} 17... c5 {[%clk 0:02:20.9]} 18. Rac1
{[%clk 0:02:01.4]} 18... Rfd8 {[%clk 0:02:08.9]} 19. Rfd1 {[%clk 0:01:59.4]}
19... Qd5 {[%clk 0:02:05]} 20. Qf4 {[%clk 0:01:43.5]} 20... Rac8 {[%clk
0:02:03.1]} 21. Rc4 {[%clk 0:01:41.5]} 21... Re8 {[%clk 0:01:52.3]} 22. Ba3
{[%clk 0:01:12.5]} 22... Bf8 {[%clk 0:01:49.5]} 23. h4 {[%clk 0:01:07.7]} 23...
h5 {[%clk 0:01:49]} 24. Rdc1 {[%clk 0:00:50.3]} 24... Re4 {[%clk 0:01:43.6]} 25.
Qf3 {[%clk 0:00:48.1]} 25... Qe5 {[%clk 0:01:40.5]} 26. g3 {[%clk 0:00:40.1]}
26... Re2 {[%clk 0:01:13.9]} 27. Kg2 {[%clk 0:00:26.3]} 27... Rxa2 {[%clk
0:01:11.3]} 28. b4 {[%clk 0:00:19.3]} 28... Rd8 {[%clk 0:00:38.9]} 29. bxc5
{[%clk 0:00:18.2]} 29... d3 {[%clk 0:00:39]} 30. R4c3 {[%clk 0:00:16.3]} 30...
d2 {[%clk 0:00:33.9]} 31. Rd1 {[%clk 0:00:16.5]} 31... Qd5 {[%clk 0:00:32.9]}
32. Qxd5 {[%clk 0:00:15.4]} 32... Rxd5 {[%clk 0:00:33.6]} 33. Kf3 {[%clk
0:00:06.3]} 33... Bg7 {[%clk 0:00:33.1]} 34. Re3 {[%clk 0:00:03.9]} 34... f5
{[%clk 0:00:22.9]} 35. Ke2 {[%clk 0:00:04.1]} 35... Kf7 {[%clk 0:00:22]} 36. Bb4
{[%clk 0:00:04.4]} 36... a5 {[%clk 0:00:21.1]} 37. Bxd2 {[%clk 0:00:02.6]} 37...
Rxc5 {[%clk 0:00:20.6]} 38. Rd3 {[%clk 0:00:01.4]} 38... Rcc2 {[%clk 0:00:20.3]}
39. Ke1 {[%clk 0:00:01.6]} 39... a4 {[%clk 0:00:20.2]} 40. Be3 {[%clk
0:00:01.5]} 40... Bc3+ {[%clk 0:00:19.8]} 41. Kf1 {[%clk 0:00:01.5]} 41... a3
{[%clk 0:00:20.4]} 42. Rd7+ {[%clk 0:00:02.3]} 42... Ke6 {[%clk 0:00:20.6]} 43.
R1d6+ {[%clk 0:00:02.4]} 43... Ke5 {[%clk 0:00:20.9]} 44. Bf4+ {[%clk
0:00:02.6]} 44... Ke4 {[%clk 0:00:21]} 45. Re7+ {[%clk 0:00:03.3]} 45... Kf3
{[%clk 0:00:18.9]} 46. Rd3+ {[%clk 0:00:04.2]} 46... Kg4 {[%clk 0:00:16.4]} 47.
f3+ {[%clk 0:00:04.3]} 47... Kh3 {[%clk 0:00:15.9]} 48. Rd1 {[%clk 0:00:04.7]}
48... Rf2+ {[%clk 0:00:15.4]} 49. Kg1 {[%clk 0:00:05.1]} 49... Rg2+ {[%clk
0:00:15.4]} 50. Kf1 {[%clk 0:00:05.7]} 50... Raf2# {[%clk 0:00:14.5]} 0-1